fUSD/lending_fUSD_20251103
["ID","MTS","AMOUNT","RATE_DAILY","PERIOD"]
[392918141,1762137160745,-246.0,0.00014897,2]
[392918142,1762137160767,-34.67179328,0.00014898,2]
[392918143,1762137162852,-187.2538,0.00014898,2]
[392918144,1762137165055,-462.60540766,0.00014898,2]
[392918145,1762137167389,-250.0,0.00014898,2]
[392918148,1762137183435,-195.0,0.00014897,2]
[392918150,1762137185733,-105.0,0.00014897,2]
[392918151,1762137185755,-300.0,0.00014898,2]
[392918152,1762137185779,-445.92975184,0.00014898,2]
[392918155,1762137192009,-195.0,0.00014898,2]
[392918156,1762137192032,-438.93317815,0.00014898,2]
[392918160,1762137195936,-208.95509601,0.00014898,2]
[392918168,1762137229698,-316.98809815,0.00014823,2]
[392918169,1762137231414,-179.69692622,0.00014798,2]
[392918170,1762137231439,-73.3414928,0.00014823,2]
[392918171,1762137233823,-292.91891596,0.00014823,2]
[392918172,1762137236682,-274.01863421,0.00014823,2]
[392918173,1762137238201,-288.7100243,0.00014823,2]
[392918174,1762137273509,-300.0,0.00014661,2]
[392918175,1762137273539,-352.82073831,0.00014823,2]
[392918181,1762137393442,-269.37705316,0.00014587,2]
[392918182,1762137513446,-220.55602848,0.0001455,2]
[392918183,1762137543407,-176.69920493,0.0001455,2]
[392918184,1762137604150,-189.79718669,0.0001455,2]
[392918190,1762137747539,192.92334591,0.00013,2]
[392918191,1762137825255,9003.09,0.00013967,2]
[392918192,1762137907431,150.0,0.00013488,2]
[392918193,1762137907503,150.0,0.00013737,2]
[392918194,1762137907539,150.0,0.00013987,2]
[392918195,1762137907926,150.0,0.00013488,2]
[392918196,1762137907968,150.0,0.00013987,2]
[392918197,1762137909412,-150.0,0.00014237,2]
[392918198,1762137909435,-148.68904227,0.00014487,2]
[392918199,1762137912849,150.0,0.00013488,2]
[392918200,1762137919588,150.0,0.00013488,2]
[392918201,1762137924169,-1.31095773,0.00014487,2]
[392918202,1762137924203,-150.0,0.00014487,2]
[392918204,1762137983633,7509.86,0.00013874,2]
[392918205,1762138011338,2187.52808454,0.00013871,2]
[392918206,1762138011358,603.28191546,0.00013871,2]
[392918281,1762138068294,201.71,0.00013871,2]
[392918282,1762138114274,2751.0,0.00013864,2]
[392918323,1762138143757,500.0,0.0001399,2]
[392918324,1762138151520,503.35168194,0.0001399,2]
[392918325,1762138163346,200.0,0.00014487,2]
[392918331,1762138231516,-195.0,0.00014578,2]
[392918332,1762138231527,-178.19806558,0.00014591,2]
[392918333,1762138231536,-182.50894319,0.000146,2]
[392918334,1762138231545,-195.0,0.00014649,2]
[392918335,1762138231555,-1480.0434,0.00014661,2]
[392918336,1762138231567,-182.50894319,0.00014691,2]
[392918337,1762138231577,-4923.14850551,0.00014697,2]
[392918338,1762138231590,-961.46254736,0.00014697,2]
[392918339,1762138231602,-793.74499384,0.00014697,2]
[392918340,1762138231671,-20356.64395329,0.00014697,2]
[392918341,1762138231681,-150.0,0.00014737,2]
[392918342,1762138231690,-178.19806557,0.00014772,2]
[392918343,1762138231700,-166.7177013,0.00014781,2]
[392918344,1762138231709,-239.84119403,0.00014791,2]
[392918345,1762138231718,-1200.0,0.00014798,2]
[392918346,1762138231727,-300.0,0.00014799,2]
[392918347,1762138231739,-300.0,0.00014799,2]
[392918348,1762138231749,-20000.0,0.000148,2]
[392918349,1762138231758,-166.71770129,0.00014805,2]
[392918350,1762138231767,-166.71770129,0.00014829,2]
[392918351,1762138231776,-327.51588917,0.00014842,2]
[392918353,1762138231787,-1083.9749773,0.00014849,2]
[392918355,1762138231797,-916.13516,0.0001485,2]
[392918357,1762138231806,-916.13516,0.0001485,2]
[392918359,1762138231815,-166.71770129,0.00014852,2]
[392918361,1762138231824,-2231.913,0.00014861,2]
[392918363,1762138231833,-173.618,0.00014861,2]
[392918365,1762138231842,-7466.424311,0.00014864,2]
[392918367,1762138231852,-150.0,0.00014871,2]
[392918369,1762138231861,-500.0,0.00014871,2]
[392918371,1762138231871,-500.0,0.00014871,2]
[392918373,1762138231880,-488.51221499,0.00014871,2]
[392918375,1762138231889,-6000.0,0.00014872,2]
[392918377,1762138231898,-322.6107,0.00014872,2]
[392918379,1762138231908,-6000.0,0.00014872,2]
[392918381,1762138231917,-6000.0,0.00014872,2]
[392918383,1762138231926,-6000.0,0.00014872,2]
[392918385,1762138231935,-510.23419325,0.00014872,2]
[392918388,1762138231944,-6000.0,0.00014872,2]
[392918390,1762138231953,-6000.0,0.00014872,2]
[392918392,1762138231963,-6000.0,0.00014872,2]
[392918394,1762138231972,-6000.0,0.00014872,2]
[392918395,1762138231981,-6000.0,0.00014872,2]
[392918397,1762138231990,-6000.0,0.00014872,2]
[392918399,1762138231999,-6000.0,0.00014872,2]
[392918401,1762138232008,-6000.0,0.00014872,2]
[392918402,1762138232017,-6000.0,0.00014872,2]
[392918403,1762138232027,-215.74106436,0.00014872,2]
[392918404,1762138232038,-6000.0,0.00014872,2]
[392918405,1762138232047,-623.58710448,0.00014872,2]
[392918406,1762138232056,-6000.0,0.00014872,2]
[392918407,1762138232065,-496.47127164,0.00014872,2]
[392918408,1762138232074,-204.00867967,0.00014872,2]
[392918409,1762138232083,-1000.0,0.00014872,2]
[392918410,1762138232093,-1000.0,0.00014872,2]
[392918411,1762138232102,-1000.0,0.00014872,2]
[392918412,1762138232111,-1000.0,0.00014872,2]
[392918413,1762138232120,-1000.0,0.00014872,2]
[392918414,1762138232129,-1000.0,0.00014872,2]
[392918415,1762138232138,-1000.0,0.00014872,2]
[392918416,1762138232147,-500.0,0.00014872,2]
[392918417,1762138232156,-1000.0,0.00014872,2]
[392918418,1762138232166,-1000.0,0.00014872,2]
[392918419,1762138232176,-1000.0,0.00014872,2]
[392918420,1762138232187,-151.0,0.00014872,2]
[392918421,1762138232196,-1000.0,0.00014872,2]
[392918422,1762138232208,-1000.0,0.00014872,2]
[392918423,1762138232218,-1000.0,0.00014872,2]
[392918424,1762138232227,-1000.0,0.00014872,2]
[392918425,1762138232236,-1000.0,0.00014872,2]
[392918426,1762138232246,-166.71770129,0.00014876,2]
[392918427,1762138232255,-183.46448566,0.0001488,2]
[392918428,1762138232266,-221.24303184,0.0001488,2]
[392918429,1762138232275,-586.57796067,0.0001488,2]
[392918430,1762138232286,-195.86377674,0.0001488,2]
[392918431,1762138232543,-33017.29202291,0.00014881,2]
[392918432,1762138232556,-5539.11213903,0.00014881,2]
[392918434,1762138237456,-4227.18361792,0.00014881,2]
[392918435,1762138237468,-21545.24867519,0.00014881,2]
[392918436,1762138237479,-14711.28391065,0.00014881,2]
[392918437,1762138237490,-8877.2776625,0.00014881,2]
[392918438,1762138237499,-151.0,0.00014881,2]
[392918439,1762138237507,-151.0,0.00014881,2]
[392918440,1762138237517,-151.0,0.00014881,2]
[392918441,1762138237526,-151.560568,0.00014881,2]
[392918442,1762138237534,-278.385715,0.00014881,2]
[392918443,1762138237546,-183.24688,0.00014881,2]
[392918444,1762138237554,-151.0,0.00014881,2]
[392918445,1762138237563,-500.0,0.00014884,2]
[392918446,1762138237574,-916.13516,0.0001489,2]
[392918447,1762138237584,-511.62495289,0.00014891,2]
[392918448,1762138237593,-511.62495283,0.00014892,2]
[392918449,1762138237603,-511.62495283,0.00014893,2]
[392918450,1762138237615,-511.62495283,0.00014894,2]
[392918451,1762138237624,-511.62495283,0.00014895,2]
[392918452,1762138237633,-511.62495283,0.00014896,2]
[392918453,1762138237643,-511.62495283,0.00014897,2]
[392918454,1762138237654,-511.62495283,0.00014898,2]
[392918455,1762138237663,-6016.05459064,0.00014898,2]
[392918456,1762138237675,-330.17149267,0.00014898,2]
[392918462,1762138237968,-3670.34533413,0.00014898,2]
[392918463,1762138237978,-1000.0,0.00014898,2]
[392918464,1762138237989,-8869.75,0.00014898,2]
[392918466,1762138237999,-511.62495283,0.00014899,2]
[392918467,1762138238008,-424.5635,0.000149,2]
[392918468,1762138238018,-166.73872466,0.000149,2]
[392918469,1762138238027,-769.41,0.000149,2]
[392918470,1762138238037,-166.71770129,0.000149,2]
[392918471,1762138238047,-511.62495283,0.000149,2]
[392918472,1762138238056,-314.82570348,0.000149,2]
[392918473,1762138238065,-171.12429615,0.000149,2]
[392918474,1762138238075,-374.22863888,0.000149,2]
[392918475,1762138238084,-500.0,0.00014904,2]
[392918476,1762138238093,-8748.461532,0.00014942,2]
[392918477,1762138238116,-27252.5,0.00014942,2]
[392918478,1762138238131,-8710.19245193,0.00014942,2]
[392918479,1762138238143,-3313.01766377,0.00014942,2]
[392918480,1762138238153,-151.0,0.00014942,2]
[392918481,1762138238162,-263.481517,0.00014942,2]
[392918482,1762138238171,-151.0,0.00014942,2]
[392918483,1762138238181,-151.0,0.00014942,2]
[392918484,1762138238190,-168.0,0.00014951,2]
[392918485,1762138238199,-916.13516,0.0001496,2]
[392918486,1762138238209,-1429.3906326,0.00014966,2]
[392918487,1762138238218,-500.0,0.00014973,2]
[392918488,1762138238227,-500.0,0.00014973,2]
[392918489,1762138238236,-500.0,0.00014973,2]
[392918490,1762138238245,-503.25417194,0.00014973,2]
[392918491,1762138238255,-500.0,0.00014973,2]
[392918492,1762138238265,-500.0,0.00014973,2]
[392918493,1762138238274,-500.0,0.00014973,2]
[392918494,1762138238283,-500.0,0.00014973,2]
[392918495,1762138238294,-1080.4,0.00014979,2]
[392918496,1762138238303,-5590.0273604,0.00014983,2]
[392918497,1762138238313,-150.0,0.00014986,2]
[392918498,1762138238322,-224.43183866,0.00014986,2]
[392918499,1762138238332,-171.39645334,0.0001499,2]
[392918500,1762138238341,-151.0,0.00014991,2]
[392918501,1762138238351,-150.0,0.00014991,2]
[392918502,1762138238360,-153.80749838,0.00014991,2]
[392918503,1762138238369,-150.0,0.00014991,2]
[392918504,1762138238378,-157.81854849,0.00014991,2]
[392918505,1762138238388,-150.0,0.00014991,2]
[392918506,1762138238398,-152.71544728,0.00014991,2]
[392918507,1762138238408,-150.0,0.00014991,2]
[392918508,1762138238418,-202.01765236,0.00014991,2]
[392918509,1762138238428,-296.45620748,0.00014991,2]
[392918510,1762138238438,-150.0,0.00014991,2]
[392918511,1762138238447,-500.0,0.00014991,2]
[392918513,1762138238456,-150.0,0.00014991,2]
[392918515,1762138238466,-150.0,0.00014991,2]
[392918517,1762138238475,-500.0,0.00014991,2]
[392918519,1762138238484,-220.60257778,0.00014991,2]
[392918521,1762138238493,-150.0,0.00014991,2]
[392918523,1762138238504,-252.56887707,0.00014991,2]
[392918525,1762138238513,-273.77874434,0.00014991,2]
[392918527,1762138238522,-150.0,0.00014991,2]
[392918529,1762138238531,-150.0,0.00014991,2]
[392918531,1762138238541,-500.0,0.00014991,2]
[392918533,1762138238550,-500.0,0.00014991,2]
[392918535,1762138238559,-500.0,0.00014991,2]
[392918537,1762138238573,-500.0,0.00014991,2]
[392918539,1762138238583,-3792.94,0.00014996,2]
[392918541,1762138238592,-675.53820772,0.00014999,2]
[392918543,1762138238602,-155.558,0.00014999,2]
[392918545,1762138238614,-200.0,0.00014999,2]
[392918547,1762138238623,-200.0,0.00014999,2]
[392918549,1762138238632,-916.13516,0.00014999,2]
[392918551,1762138238641,-168.12564713,0.00014999,2]
[392918553,1762138238652,-574.08797134,0.00014999,2]
[392918555,1762138238662,-2408.0,0.00015,2]
[392918557,1762138238671,-2076101.217608,0.00015,2]
[392918595,1762138239770,-1759.21682775,0.00015,2]
[392918602,1762138240239,-1.6e-07,0.00015,2]
[392918637,1762138242692,-3529.91022672,0.00015,2]
[392918638,1762138242901,-295.54208325,0.00015,2]
[392918639,1762138242912,-611.19597256,0.00015,2]
[392918660,1762138245529,-114000.0,0.00015,2]
[392918666,1762138245584,-478.036215,0.00015,2]
[392918668,1762138245595,-1093.0,0.00015,2]
[392918670,1762138245847,-1310.16,0.00015,2]
[392918671,1762138245859,-343.025,0.00015,2]
[392918745,1762138282839,4014.16,0.00014292,2]
[392918746,1762138289141,4618.44,0.00014161,2]
[392918800,1762138412050,1367.41,0.00014004,2]
[392918801,1762138412073,8167.73,0.00014004,2]
[392918934,1762138627632,1000.0,0.00013953,2]
[392918937,1762138631519,175.56,0.00013939,2]
[392918945,1762138685984,250.0,0.00013925,2]
[392918947,1762138696918,610.0,0.00013925,2]
[392918953,1762138751751,2300.62,6.951e-05,2]
[392918954,1762138751960,2300.62,7.317e-05,2]
[392918955,1762138752172,2300.62,7.683e-05,2]
[392918956,1762138752376,2062.59,8.049e-05,2]
[392918957,1762138752398,238.03,8.049e-05,2]
[392918958,1762138752594,2300.62,8.415e-05,2]
[392918959,1762138752786,2300.62,8.781e-05,2]
[392918960,1762138752978,2300.62,9.146e-05,2]
[392918961,1762138753178,2300.62,9.512e-05,2]
[392918962,1762138753380,559.5,9.878e-05,2]
[392918963,1762138753402,1741.12,9.878e-05,2]
[392918964,1762138753606,2300.62,0.00010244,2]
[392918965,1762138753830,2300.62,0.0001061,2]
[392918966,1762138754033,2300.62,0.00010976,2]
[392918967,1762138754514,1357.03,0.00011342,2]
[392918968,1762138754537,943.59,0.00011342,2]
[392918969,1762138754723,2300.62,0.00011707,2]
[392918970,1762138755465,1000.0,0.00015,10]
[392918971,1762138758209,2300.62,0.00012073,2]
[392918972,1762138758574,2300.62,0.00012439,2]
[392918973,1762138758947,2154.56,0.00012805,2]
[392918974,1762138758971,146.06,0.00012805,2]
[392918975,1762138759449,2300.62,0.00013171,2]
[392918976,1762138759575,2300.62,0.00013537,2]
[392918977,1762138759636,2300.62,0.00013903,2]
[392918978,1762138767415,176.52,0.00011131,2]
[392918979,1762138767610,176.52,0.00012244,2]
[392918980,1762138767811,176.52,0.00013358,2]
[392918981,1762138768011,176.52,0.00014471,2]
[392918982,1762138773524,-230.40058126,0.00014542,2]
[392918983,1762138775535,467.98,0.00013902,2]
[392918984,1762138788412,-161.54081874,0.00014542,2]
[392918985,1762138788436,-33.45918126,0.00014575,2]
[392918986,1762138788532,1413.816739,0.00014469,2]
[392918987,1762138791778,-168.12563713,0.00014575,2]
[392918990,1762138840787,329.76804879,0.00018,30]
[392918998,1762138915597,364.213261,0.00013886,2]
[392918999,1762138915622,135.786739,0.00013886,2]
[392919000,1762138921953,150.0,0.00013894,2]
[392919025,1762138942452,671.07018413,0.00013,2]
[392919027,1762138975455,200.0,0.00013871,2]
[392919029,1762138995942,1197.0,0.0001439,2]
[392919030,1762139031905,150.0,0.00013836,2]
[392919037,1762139100244,200.0,0.00013799,2]
[392919038,1762139106728,150.0,0.00013488,2]
[392919039,1762139106764,150.0,0.00013862,2]
[392919040,1762139106823,150.0,0.00014237,2]
[392919041,1762139107144,150.0,0.00013488,2]
[392919042,1762139107185,150.0,0.00013737,2]
[392919043,1762139107246,150.0,0.00013987,2]
[392919044,1762139107285,150.0,0.00014237,2]
[392919045,1762139107357,150.0,0.00014487,2]
[392919046,1762139107613,150.0,0.00013488,2]
[392919047,1762139108013,150.0,0.00014237,2]
[392919048,1762139108070,334.92,0.00014,2]
[392919049,1762139112256,150.0,0.00013488,2]
[392919050,1762139112307,150.0,0.00014237,2]
[392919051,1762139112499,150.0,0.00013488,2]
[392919052,1762139117189,150.0,0.00013488,2]
[392919053,1762139117250,150.0,0.00014237,2]
[392919054,1762139125582,157.14661964,0.00013488,2]
[392919055,1762139125978,150.0,0.00013488,2]
[392919056,1762139128051,150.0,0.00013488,2]
[392919057,1762139128098,150.0,0.00013488,2]
[392919058,1762139238798,1420.9,0.00013769,2]
[392919059,1762139253491,-174.64181959,0.00014515,2]
[392919060,1762139253513,-166.85451323,0.00014542,2]
[392919061,1762139256286,-151.89692149,0.00014542,2]
[392919063,1762139258441,-195.0,0.00014542,2]
[392919069,1762139279231,150.0,0.00013776,2]
[392919071,1762139279458,150.0,0.00013776,120]
[392919072,1762139280057,-163.44697346,0.00014542,2]
[392919075,1762139282668,-75.61770225,0.00014542,2]
[392919076,1762139282691,-212.22930658,0.00014542,2]
[392919077,1762139282713,-17.75451082,0.0001455,2]
[392919079,1762139313696,-177.24548918,0.0001455,2]
[392919080,1762139313718,-98.4895706,0.00014554,2]
[392919081,1762139314138,1852.42,0.00013788,2]
[392919083,1762139328427,-96.5104294,0.00014554,2]
[392919084,1762139328454,-234.59107351,0.00014558,2]
[392919086,1762139334854,1000.0,0.00013699,2]
[392919100,1762139431700,-151.0,0.00014575,2]
[392919101,1762139431711,-151.0,0.00014575,2]
[392919102,1762139431722,-174.64181958,0.0001458,2]
[392919103,1762139431733,-150.0,0.00014612,2]
[392919104,1762139431744,-720.34669949,0.00014643,2]
[392919105,1762139431755,-1200.0,0.0001468,2]
[392919107,1762139431765,-323.27155125,0.00014681,2]
[392919108,1762139431776,-316.07696653,0.00014681,2]
[392919109,1762139431786,-283.34313315,0.00014681,2]
[392919110,1762139431797,-1215.9354,0.00014681,2]
[392919111,1762139431808,-234.2205,0.00014681,2]
[392919112,1762139431820,-300.0,0.00014687,2]
[392919113,1762139431831,-1200.0,0.00014688,2]
[392919114,1762139431841,-1197.0,0.00014689,2]
[392919115,1762139431852,-356.73571352,0.00014702,2]
[392919116,1762139431866,-780.26369652,0.00014702,2]
[392919117,1762139431893,-60.00058996,0.00014702,2]
[392919118,1762139431904,-175.56,0.00014713,2]
[392919119,1762139431916,-150.0,0.00014737,2]
[392919120,1762139431926,-200.0,0.00014742,2]
[392919121,1762139431936,-4701.00210488,0.0001476,2]
[392919122,1762139431966,-407.12068079,0.0001476,2]
[392919123,1762139431980,-303.87721433,0.0001476,2]
[392919124,1762139431991,-239.84119403,0.00014761,2]
[392919125,1762139432000,-150.0,0.00014771,2]
[392919126,1762139432011,-673.23,0.00014772,2]
[392919127,1762139432022,-322.6107,0.00014772,2]
[392919128,1762139432032,-46.99136537,0.00014772,2]
[392919129,1762139432045,-104.00863463,0.00014772,2]
[392919130,1762139432055,-623.58710448,0.00014772,2]
[392919131,1762139432065,-582.68320011,0.00014772,2]
[392919133,1762139432079,-2660.02778332,0.00014772,2]
[392919135,1762139432089,-151.0,0.00014772,2]
[392919137,1762139432099,-151.0,0.00014772,2]
[392919139,1762139432110,-151.0,0.00014772,2]
[392919141,1762139432120,-151.0,0.00014772,2]
[392919144,1762139432130,-595.9640243,0.00014772,2]
[392919146,1762139432140,-151.0,0.00014772,2]
[392919148,1762139432150,-151.0,0.00014772,2]
[392919150,1762139432160,-151.0,0.00014772,2]
[392919152,1762139432170,-3000.0,0.00014772,2]
[392919154,1762139432180,-202.1275117,0.00014772,2]
[392919156,1762139432190,-3000.0,0.00014772,2]
[392919158,1762139432200,-151.0,0.00014772,2]
[392919160,1762139432210,-3000.0,0.00014772,2]
[392919162,1762139432220,-151.0,0.00014772,2]
[392919164,1762139432230,-151.0,0.00014772,2]
[392919166,1762139432241,-3000.0,0.00014772,2]
[392919169,1762139432251,-151.0,0.00014772,2]
[392919170,1762139432262,-3000.0,0.00014772,2]
[392919173,1762139432272,-151.0,0.00014772,2]
[392919176,1762139432282,-3000.0,0.00014772,2]
[392919178,1762139432292,-151.0,0.00014772,2]
[392919179,1762139432302,-316.75873735,0.00014772,2]
[392919181,1762139432311,-1514.09963616,0.00014772,2]
[392919196,1762139437651,-1485.90036384,0.00014772,2]
[392919197,1762139437661,-151.0,0.00014772,2]
[392919198,1762139437672,-3000.0,0.00014772,2]
[392919199,1762139437682,-151.0,0.00014772,2]
[392919200,1762139437692,-3000.0,0.00014772,2]
[392919201,1762139437702,-151.0,0.00014772,2]
[392919202,1762139437712,-3000.0,0.00014772,2]
[392919203,1762139437721,-500.0,0.00014772,2]
[392919204,1762139437730,-151.0,0.00014772,2]
[392919205,1762139437739,-3000.0,0.00014772,2]
[392919206,1762139437749,-500.0,0.00014772,2]
[392919207,1762139437758,-151.0,0.00014772,2]
[392919208,1762139437767,-3000.0,0.00014772,2]
[392919209,1762139437776,-496.47127164,0.00014772,2]
[392919210,1762139437785,-500.0,0.00014772,2]
[392919211,1762139437794,-151.0,0.00014772,2]
[392919212,1762139437803,-3000.0,0.00014772,2]
[392919213,1762139437812,-500.0,0.00014772,2]
[392919214,1762139437821,-160.73339964,0.00014772,2]
[392919215,1762139437833,-3000.0,0.00014772,2]
[392919216,1762139437842,-500.0,0.00014772,2]
[392919217,1762139437851,-993.45277486,0.00014772,2]
[392919218,1762139437860,-500.0,0.00014772,2]
[392919220,1762139437870,-1000.0,0.00014772,2]
[392919221,1762139437879,-1000.0,0.00014772,2]
[392919222,1762139437888,-500.0,0.00014772,2]
[392919223,1762139437897,-1000.0,0.00014772,2]
[392919224,1762139437907,-500.0,0.00014772,2]
[392919225,1762139437915,-442.7295594,0.00014772,2]
[392919226,1762139437925,-500.0,0.00014772,2]
[392919227,1762139437934,-500.0,0.00014772,2]
[392919228,1762139437943,-500.0,0.00014772,2]
[392919229,1762139437952,-500.0,0.00014772,2]
[392919230,1762139437961,-500.0,0.00014772,2]
[392919231,1762139437970,-500.0,0.00014772,2]
[392919232,1762139437982,-621.56561669,0.00014772,2]
[392919233,1762139437991,-500.0,0.00014772,2]
[392919234,1762139438000,-500.0,0.00014772,2]
[392919235,1762139438010,-500.0,0.0001478,2]
[392919236,1762139438019,-500.0,0.0001478,2]
[392919237,1762139438029,-500.0,0.0001478,2]
[392919238,1762139438040,-410.60457247,0.0001478,2]
[392919239,1762139438050,-154.87012229,0.0001478,2]
[392919241,1762139438062,-503.47187809,0.0001478,2]
[392919243,1762139438071,-165.39024611,0.0001478,2]
[392919244,1762139438082,-14587.00202903,0.00014781,2]
[392919245,1762139438095,-380899.00357097,0.00014781,2]
[392919246,1762139438104,-1000.0,0.00014781,2]
[392919247,1762139438122,-2706.1234,0.00014781,2]
[392919248,1762139438133,-776.22836642,0.000148,2]
[392919249,1762139438143,-5412.0,0.00014803,2]
[392919250,1762139438155,-200.0,0.00014831,2]
[392919251,1762139438165,-483.34789,0.0001485,2]
[392919252,1762139438175,-1785.53,0.00014863,2]
[392919253,1762139438185,-173.618,0.00014863,2]
[392919254,1762139438194,-166.73872466,0.000149,2]
[392919255,1762139438204,-200.0,0.00014924,2]
[392919256,1762139438213,-5412.0,0.00014943,2]
[392919257,1762139438224,-714.6953163,0.00014956,2]
[392919258,1762139438234,-171.39645334,0.00014958,2]
[392919259,1762139438248,-540.2,0.0001497,2]
[392919260,1762139438258,-500.0,0.00014973,2]
[392919261,1762139438267,-500.73063442,0.00014973,2]
[392919262,1762139438277,-529.28385714,0.00014973,2]
[392919263,1762139438286,-500.0,0.00014973,2]
[392919264,1762139438296,-503.25417194,0.00014973,2]
[392919265,1762139438306,-500.0,0.00014973,2]
[392919266,1762139438315,-542.320165,0.00014973,2]
[392919267,1762139438324,-165.82264918,0.00014973,2]
[392919268,1762139438334,-500.0,0.00014973,2]
[392919269,1762139438343,-500.0,0.00014973,2]
[392919270,1762139438352,-502.91660732,0.00014973,2]
[392919271,1762139438362,-500.55192615,0.00014973,2]
[392919272,1762139438371,-500.31544654,0.00014973,2]
[392919273,1762139438382,-500.0,0.00014973,2]
[392919274,1762139438392,-500.0,0.00014973,2]
[392919275,1762139438401,-500.64822633,0.00014973,2]
[392919276,1762139438410,-501.3328777,0.00014973,2]
[392919277,1762139438420,-501.67217385,0.00014973,2]
[392919279,1762139438429,-500.0,0.00014973,2]
[392919280,1762139438439,-200.09454428,0.00014973,2]
[392919281,1762139438450,-500.0,0.00014973,2]
[392919282,1762139438459,-500.64476753,0.00014973,2]
[392919283,1762139438469,-500.46661689,0.00014973,2]
[392919284,1762139438478,-500.0,0.00014973,2]
[392919285,1762139438488,-505.4433904,0.00014973,2]
[392919286,1762139438497,-483.3479,0.0001498,2]
[392919287,1762139438507,-200.0,0.00014986,2]
[392919288,1762139438516,-224.43183866,0.00014986,2]
[392919289,1762139438526,-150.0,0.00014986,2]
[392919290,1762139438536,-150.0,0.00014986,2]
[392919291,1762139438545,-198.67101137,0.00014986,2]
[392919292,1762139438555,-154.52795536,0.00014986,2]
[392919293,1762139438565,-184.0,0.00014986,2]
[392919294,1762139438575,-500.0,0.0001499,2]
[392919295,1762139438585,-199.60669502,0.0001499,2]
[392919296,1762139438594,-150.0,0.00014991,2]
[392919297,1762139438603,-220.60257778,0.00014991,2]
[392919298,1762139438613,-150.0,0.00014991,2]
[392919299,1762139438622,-153.80749838,0.00014991,2]
[392919300,1762139438631,-150.0,0.00014991,2]
[392919301,1762139438641,-157.81854849,0.00014991,2]
[392919302,1762139438650,-150.0,0.00014991,2]
[392919303,1762139438660,-152.71544728,0.00014991,2]
[392919304,1762139438669,-150.0,0.00014991,2]
[392919305,1762139438678,-202.01765236,0.00014991,2]
[392919306,1762139438688,-296.45620748,0.00014991,2]
[392919307,1762139438699,-150.0,0.00014991,2]
[392919308,1762139438709,-500.0,0.00014991,2]
[392919309,1762139438718,-500.0,0.00014991,2]
[392919310,1762139438727,-150.0,0.00014991,2]
[392919311,1762139438737,-150.0,0.00014991,2]
[392919312,1762139438747,-252.56887707,0.00014991,2]
[392919313,1762139438756,-150.0,0.00014991,2]
[392919314,1762139438766,-273.77874434,0.00014991,2]
[392919315,1762139438776,-150.0,0.00014991,2]
[392919316,1762139438785,-500.0,0.00014991,2]
[392919317,1762139438795,-500.0,0.00014991,2]
[392919318,1762139438804,-675.53820772,0.00014999,2]
[392919319,1762139438814,-39142.62931663,0.00014999,2]
[392919320,1762139438823,-500.0,0.00014999,2]
[392919321,1762139438832,-500.0,0.00014999,2]
[392919322,1762139438842,-500.0,0.00014999,2]
[392919323,1762139438851,-500.0,0.00014999,2]
[392919324,1762139438861,-500.0,0.00014999,2]
[392919325,1762139438871,-500.0,0.00014999,2]
[392919326,1762139438881,-500.0,0.00014999,2]
[392919327,1762139438891,-500.0,0.00014999,2]
[392919328,1762139438900,-500.0,0.00014999,2]